bitfinex-derivatives/quotes_ETHF0:USTF0_20250803
["timestamp","ask_amount","ask_price","bid_price","bid_amount"]
[1754256367173,1.7971,3507.4,3507.3,0.57022]
[1754256367573,1.7971,3507.4,3507.1,8.84368378]
[1754256367574,1.7971,3507.3,3507.2,0.57024]
[1754256367767,1.7971,3507.3,3507.2,0.77234]
[1754256367968,1.7971,3507.3,3507.2,1.01724]
[1754256368269,1.7971,3507.3,3507.2,1.33874]
[1754256368670,1.7971,3507.3,3507.2,1.63574]
[1754256368871,1.7971,3507.3,3507.2,1.0655]
[1754256369264,2.36734,3507.3,3507.1,3.2078]
[1754256369469,0.7271,3506.8,3506.7,4.0284]
[1754256369667,1.7971,3506.8,3506.7,3.9518]
[1754256369872,1.7971,3506.8,3506.7,3.2078]
[1754256372180,1.3199,3506.4,3506.3,23.2249]
[1754256372473,1.7971,3506.4,3506.3,23.0228]
[1754256372669,1.7971,3506.4,3506.3,23.2249]
[1754256373075,1.7971,3506.4,3506.3,23.79528]
[1754256373669,1.7971,3506.4,3506.3,24.65868]
[1754256374677,1.7971,3506.4,3506.3,4.84368]
[1754256374974,1.7971,3506.4,3506.3,3.77818]
[1754256375180,1.7971,3506.4,3506.3,4.2887]
[1754256376180,1.4597,3506.5,3506.3,3.2078]
[1754256376480,1.7695,3506.4,3506.3,3.2078]
[1754256376981,1.7695,3506.4,3506.3,3.4148]
[1754256377576,1.7695,3506.4,3506.3,3.2078]
[1754256378281,1.7695,3506.4,3506.3,3.4148]
[1754256378581,1.7695,3506.4,3506.3,3.9638]
[1754256379283,1.7695,3506.4,3506.3,3.2078]
[1754256380078,0.7117,3506.2,3506.1,0.4507]
[1754256380275,1.7695,3506.2,3506.1,0.756]
[1754256380476,1.7695,3506.2,3506.1,1.0809]
[1754256380671,1.7695,3506.0,3505.9,3.2078]
[1754256380875,1.7695,3506.0,3505.9,3.9638]
[1754256381172,1.7695,3506.0,3505.9,4.2887]
[1754256382577,1.7695,3506.0,3505.6,20.0177]
[1754256382879,1.5715,3505.9,3505.8,0.207]
[1754256383080,1.7695,3505.9,3505.8,0.207]
[1754256384370,1.7695,3505.9,3505.8,0.57047]
[1754256384573,1.7695,3505.9,3505.7,0.3053]
[1754256384574,1.0112,3505.9,3505.7,0.3053]
[1754256384777,1.3166,3505.7,3505.6,19.774]
[1754256384972,0.7117,3505.7,3505.6,0.5705]
[1754256385176,0.7117,3505.7,3505.5,9.64169378]
[1754256385481,1.0171,3505.7,3505.6,0.207]
[1754256385782,1.7695,3505.7,3505.6,0.4507]
[1754256386483,1.7695,3505.7,3505.5,3.2078]
[1754256386682,1.7695,3505.6,3505.5,3.2078]
[1754256387581,1.7695,3505.2,3505.1,3.2078]
[1754256388179,1.7695,3505.0,3504.9,1.02711879]
[1754256395197,0.7583,3505.6,3505.4,0.57054]
[1754256395396,1.3166,3505.5,3505.4,1.10244]
[1754256395701,1.7695,3505.5,3505.4,0.5319]
[1754256395904,1.7695,3505.5,3505.4,1.0809]
[1754256397002,3.2078,3505.8,3505.5,0.57052]
[1754256397192,41.07,3506.1,3505.6,1.0809]
[1754256397193,1.47,3505.7,3505.6,1.0809]
[1754256397396,0.2995,3505.7,3505.6,4.2887]
[1754256398397,1.7695,3506.1,3506.0,0.8372]
[1754256398705,0.2995,3506.1,3506.0,4.2887]
[1754256398913,0.8073,3506.4,3506.3,0.8372]
[1754256399097,1.7695,3506.4,3506.3,1.0809]
[1754256399598,0.57039,3506.3,3506.0,3.2078]
[1754256399803,3.2078,3507.0,3506.0,1.0809]
[1754256399804,1.7695,3506.1,3506.0,1.0809]
[1754256400399,1.7695,3506.0,3505.9,3.2078]
[1754256400706,0.198,3505.6,3505.5,1.0809]
[1754256401004,0.8073,3505.6,3505.5,1.0809]
[1754256401206,1.7695,3505.6,3505.5,1.0809]
[1754256402006,1.7695,3505.6,3505.5,1.65142]
[1754256402508,1.7695,3505.6,3505.5,1.0809]
[1754256402803,1.0578,3505.3,3505.1,1.11958]
[1754256403007,1.7695,3505.2,3505.1,1.32658]
[1754256403203,1.7695,3505.2,3505.1,1.65148]
[1754256403502,1.7695,3505.2,3505.1,1.0809]
[1754256403812,0.7117,3505.2,3505.1,0.76769]
[1754256404006,0.7117,3505.2,3505.1,0.764]
[1754256404206,1.7736,3505.2,3505.1,1.0811]
[1754256406113,0.3057,3505.2,3505.1,1.0811]
[1754256409309,0.5206,3505.2,3505.1,1.0811]
[1754256409512,0.7129,3505.0,3504.9,4.23491879]
[1754256409702,1.7748,3505.0,3504.9,4.43201879]
[1754256409907,1.7748,3505.0,3504.9,5.31601879]
[1754256415301,0.7129,3505.6,3505.5,1.08471]
[1754256415507,1.7748,3505.6,3505.5,1.65161]
[1754256415807,1.0186,3505.6,3505.5,1.65161]
[1754256416109,0.8156,3505.6,3505.5,1.65161]
[1754256417719,0.3057,3505.6,3505.5,1.65161]
[1754256419618,0.3057,3505.8,3505.7,1.0808]
[1754256420212,0.5206,3505.8,3505.7,1.0808]
[1754256420413,1.7748,3505.8,3505.7,1.0808]
[1754256421820,1.7748,3505.7,3505.6,0.5705]
[1754256422412,1.7748,3505.7,3505.6,0.7676]
[1754256422719,1.7748,3505.7,3505.6,1.0118]
[1754256423616,1.7748,3505.7,3505.6,0.7676]
[1754256424019,1.7748,3505.7,3505.6,1.3342]
[1754256424719,1.7748,3505.7,3505.6,1.6513]
[1754256424918,1.0186,3505.7,3505.6,1.6513]
[1754256426322,1.3179,3505.7,3505.6,1.6513]
[1754256426920,0.605,3506.3,3505.6,0.5666]
[1754256427133,1.7748,3506.2,3506.1,0.5142]
[1754256427330,1.7748,3506.2,3506.1,1.0808]
[1754256434519,1.7748,3506.2,3505.8,3.1883178]
[1754256434520,0.57046,3505.9,3505.5,3.2078]
[1754256434724,0.7316,3505.6,3505.5,3.2078]
[1754256434926,1.7993,3505.6,3505.5,3.2078]
[1754256439026,1.7993,3505.6,3505.3,0.57055]
[1754256439227,1.7993,3505.4,3505.3,1.67525]
[1754256441228,1.7993,3505.4,3505.3,1.1047]
[1754256441438,1.7993,3505.4,3505.3,0.462]
[1754256442733,1.7993,3505.4,3505.3,0.7809]
[1754256443130,1.3575,3505.3,3505.2,0.78846]
[1754256443433,1.7993,3505.3,3505.2,1.67526]
[1754256444239,1.7993,3505.1,3505.0,23.6477]
[1754256444429,1.7993,3505.1,3505.0,23.9715]
[1754256444935,1.7993,3505.1,3505.0,4.88309]
[1754256446833,1.7993,3505.1,3505.0,3.2078]
[1754256447335,1.7993,3505.1,3505.0,0.2441]
[1754256447736,1.7993,3505.0,3504.9,1.02711879]
[1754256447938,1.7993,3505.0,3504.9,1.59772879]
[1754256448140,1.7993,3505.0,3504.9,1.02711879]
[1754256450635,3.1883178,3505.0,3504.2,0.57073]
[1754256450838,1.7993,3504.3,3504.2,0.57073]
[1754256451235,1.7993,3504.3,3504.2,0.89453]
[1754256451439,1.7993,3504.3,3504.2,0.57073]
[1754256451741,0.7316,3504.3,3504.1,3.77854]
[1754256451942,1.7993,3504.2,3504.1,4.58684]
[1754256452239,1.3575,3504.6,3504.5,1.32898]
[1754256452442,1.7993,3504.6,3504.5,2.13238]
[1754256453241,1.7993,3504.6,3504.5,1.5617]
[1754256453441,1.7993,3504.6,3504.5,0.8083]
[1754256453641,1.7993,3504.6,3504.5,0.3238]
[1754256453945,1.7993,3504.6,3504.3,0.57071]
[1754256454242,3.2078,3504.8,3504.6,0.57067]
[1754256454449,0.7316,3504.7,3504.6,0.57067]
[1754256454943,1.7993,3504.7,3504.6,0.57067]
[1754256455635,1.7993,3504.7,3504.4,0.5707]
[1754256455847,0.7316,3504.5,3504.4,0.5707]
[1754256456037,1.7993,3504.5,3504.4,0.5707]
[1754256456539,1.7993,3504.2,3504.1,3.5316]
[1754256456743,1.3575,3504.2,3504.1,5.0674]
[1754256456941,0.3221,3504.2,3504.1,5.0674]
[1754256457147,0.8409,3504.2,3504.1,5.0674]
[1754256457353,1.7993,3504.2,3504.1,5.0674]
[1754256458057,1.7993,3504.7,3504.6,0.2179]
[1754256458258,1.7993,3504.7,3504.6,1.5617]
[1754256464059,1.7993,3504.7,3504.6,1.2428]
[1754256464258,1.7993,3504.7,3504.6,1.5452]
[1754256464651,1.0537,3504.7,3504.6,1.0607]
[1754256464852,1.3775,3504.7,3504.6,1.8355]
[1754256465253,1.8467,3504.7,3504.6,1.8355]
[1754256465863,0.5371,3504.7,3504.6,5.0238178]
[1754256466355,0.8457,3504.7,3504.6,1.8355]
[1754256466556,3.2078,3505.2,3505.1,0.7115]
[1754256466756,0.824,3505.2,3505.1,1.7887]
[1754256467059,1.8274,3505.2,3505.1,1.7887]
[1754256470158,1.8274,3505.2,3505.1,1.4865]
[1754256470553,3.77832,3505.6,3504.6,3.1883178]
[1754256470554,0.4692,3504.9,3504.6,0.57066]
[1754256470756,1.8274,3504.7,3504.6,2.05716]
[1754256471162,1.8274,3504.7,3504.6,0.3157]
[1754256471468,0.731,3504.3,3504.2,2.05722]
[1754256471668,1.8274,3504.3,3504.2,2.05722]
[1754256479166,1.8274,3504.3,3504.2,1.75482]
[1754256479371,1.8274,3504.3,3504.2,2.05722]
[1754256479765,1.8274,3504.3,3504.2,0.57072]
[1754256479972,1.8274,3503.9,3503.8,1.2823]
[1754256480170,1.8274,3503.9,3503.8,2.0573]
[1754256484271,1.8274,3503.9,3503.7,3.2078]
[1754256484476,1.8274,3503.6,3503.5,2.05735]
[1754256485374,1.8274,3503.6,3503.5,1.1841]
[1754256485678,0.731,3503.4,3503.3,3.2078]
[1754256485875,1.8274,3503.4,3503.3,4.6943]
[1754256486076,1.8274,3503.4,3503.3,4.9965]
[1754256488071,1.8274,3503.4,3503.3,4.6943]
[1754256488281,1.8274,3503.4,3503.3,4.9965]
[1754256491579,1.8274,3503.4,3503.3,4.6943]
[1754256492477,0.4692,3503.9,3503.6,0.57083]
[1754256492676,1.5188,3504.2,3504.1,0.5125]
[1754256492978,1.5188,3504.2,3504.1,0.7883]
[1754256493182,1.8274,3504.2,3504.1,0.3157]
[1754256493475,1.8274,3504.2,3504.1,1.1841]
[1754256493674,1.8274,3504.2,3504.1,1.4865]
[1754256494576,0.7236,3503.8,3503.7,3.2078]
[1754256494879,0.7236,3503.7,3503.6,2.36743]
[1754256495074,0.5136,3503.7,3503.6,5.57523]
[1754256495576,0.2966,3503.7,3503.6,5.57523]
[1754256495780,1.5086,3504.3,3504.2,0.57073]
[1754256496079,1.826,3504.3,3504.2,1.4862]
[1754256497884,1.826,3504.3,3504.2,1.1835]
[1754256500273,1.826,3504.3,3504.2,0.3005]
[1754256500479,1.826,3504.3,3504.2,0.7786]
[1754256503581,1.826,3504.3,3504.2,0.9794]
[1754256503786,1.826,3504.3,3504.2,1.2821]
[1754256504274,1.826,3504.3,3504.2,0.5013]
[1754256504481,1.826,3504.3,3504.2,0.3005]
[1754256504886,1.826,3504.3,3504.2,1.4862]
[1754256507686,0.57069,3504.5,3504.2,1.4862]
[1754256507989,0.57069,3504.5,3504.0,3.77856]
[1754256507990,2.1001,3504.4,3504.3,1.7966]
[1754256508191,2.3967,3504.4,3504.3,1.7966]
[1754256508386,2.3967,3504.4,3504.3,1.4862]
[1754256508790,1.826,3504.4,3504.3,1.4862]
[1754256512997,1.826,3504.4,3504.3,2.05692]
[1754256513697,1.826,3504.4,3504.3,2.36732]
[1754256513897,1.826,3504.4,3504.3,1.7966]
[1754256514095,1.826,3504.4,3504.3,1.4862]
[1754256516492,1.826,3504.4,3504.3,0.3005]
[1754256516794,1.826,3504.4,3504.0,3.6859]
[1754256516997,1.826,3504.1,3504.0,4.4899]
[1754256517195,1.826,3504.1,3504.0,4.694]
[1754256517695,1.826,3504.1,3504.0,5.26477]
[1754256519499,1.3637,3504.3,3504.2,1.27613]
[1754256519700,1.826,3504.3,3504.2,1.27613]
[1754256519898,0.3174,3504.7,3504.4,1.2761]
[1754256520094,1.212,3504.9,3504.8,1.58644]
[1754256520398,1.212,3504.9,3504.8,2.36724]
[1754256520693,3.2078,3505.4,3504.8,2.05684]
[1754256520903,0.7497,3505.0,3504.9,1.4862]
[1754256521101,1.826,3505.2,3505.1,1.7966]
[1754256521301,1.3637,3505.2,3505.1,1.7966]
[1754256521599,1.826,3505.2,3505.1,1.7966]
[1754256521797,1.826,3505.2,3505.1,1.4862]
[1754256524903,0.7001,3505.0,3504.9,1.56281]
[1754256525097,1.7677,3505.0,3504.9,1.56281]
[1754256525398,1.7677,3505.0,3504.9,1.86481]
[1754256525600,1.7677,3505.0,3504.9,2.07181]
[1754256525800,0.7001,3504.8,3504.7,3.2078]
[1754256525998,0.7001,3504.8,3504.3,3.2078]
[1754256526191,1.7677,3504.7,3504.6,0.7256]
[1754256526397,1.7677,3504.7,3504.6,1.5012]
[1754256526798,1.7677,3504.7,3504.3,3.5213]
[1754256526799,1.7677,3504.7,3504.3,3.2078]
[1754256527100,3.1883178,3505.0,3504.1,0.4736]
[1754256527101,1.7677,3504.2,3504.1,0.4736]
[1754256527303,1.7677,3504.2,3504.1,0.9922]
[1754256527497,2.33843,3504.2,3504.1,1.5012]
[1754256534907,2.33843,3504.2,3504.1,0.3138]
[1754256535410,2.33843,3504.2,3504.1,1.5012]
[1754256545416,2.33843,3504.2,3504.1,1.8147]
[1754256546410,2.33843,3504.2,3504.1,1.5012]
[1754256548928,1.7677,3504.2,3504.1,1.5012]
[1754256550228,0.2956,3505.0,3504.1,3.7286]
[1754256550425,0.3185,3505.0,3503.9,3.1883178]
[1754256550622,3.2078,3505.1,3503.9,3.1883178]
[1754256550826,1.0676,3504.9,3504.1,1.0891]
[1754256551025,1.0676,3504.8,3503.9,3.1883178]
[1754256551222,1.0676,3504.7,3504.1,1.0891]
[1754256551431,0.9957,3504.5,3504.4,1.2963]
[1754256551729,1.7677,3504.5,3504.4,2.0719]
[1754256555728,3.2078,3505.1,3504.8,0.57064]
[1754256555934,1.7901,3504.9,3504.8,2.36854]
[1754256556331,1.7901,3504.9,3504.8,2.06944]
[1754256561435,0.9652,3504.9,3504.5,3.2078]
[1754256561637,0.5185,3504.2,3504.1,3.1949]
[1754256561941,1.3038,3504.2,3504.1,3.1949]
[1754256562340,1.3038,3504.2,3504.1,4.6937]
[1754256562939,1.3038,3504.2,3504.1,5.26445]
[1754256565140,1.3038,3504.2,3504.1,2.06955]
[1754256570640,1.3038,3504.2,3504.1,1.4988]
[1754256570844,1.3038,3504.2,3504.1,1.2825]
[1754256572451,0.4979,3503.9,3503.8,0.7157]
[1754256572650,1.2832,3503.9,3503.8,0.81]
[1754256572949,1.2832,3503.9,3503.8,1.2825]
[1754256575050,1.2832,3503.9,3503.8,1.4988]
[1754256578154,1.2832,3503.9,3503.3,5.75790836]
[1754256578155,0.9652,3503.6,3503.5,0.5113]
[1754256578655,1.2832,3503.6,3503.5,0.9838]
[1754256579150,1.1077,3502.7,3502.6,2.94390947]
[1754256579456,1.1077,3502.7,3502.6,0.2991]
[1754256579457,2.7440244,3502.7,3502.6,0.2991]
[1754256579654,2.7440244,3502.7,3502.6,1.4873]
[1754256581151,2.7440244,3502.7,3502.6,0.8141]
[1754256581656,2.7440244,3502.7,3502.6,1.1247]
[1754256582154,3.3150144,3502.7,3502.4,0.2991]
[1754256582349,41.091,3503.3,3502.7,0.6097]
[1754256582556,6.9669678,3503.5,3503.4,0.7157]
[1754256582756,6.9669678,3503.5,3503.4,1.7979]
[1754256583252,6.3961178,3503.5,3503.4,1.7979]
[1754256584556,6.58788107,3503.5,3503.4,1.7979]
[1754256585658,6.3961178,3503.5,3503.4,1.7979]
[1754256586156,6.3961178,3503.5,3503.4,1.3254]
[1754256586456,6.3961178,3503.5,3503.4,0.2991]
[1754256587257,6.3961178,3503.5,3503.4,0.5946]
[1754256587458,26.0321178,3503.5,3503.4,0.5946]
[1754256589364,6.3961178,3503.5,3503.4,0.5946]
[1754256589659,26.0331178,3503.5,3503.4,0.5946]
[1754256591452,26.0211178,3503.5,3503.4,0.5946]
[1754256591653,3.2078,3503.5,3503.4,1.0155]
[1754256591853,2.2268,3503.5,3503.4,1.8255]
[1754256592062,3.2078,3503.9,3503.8,1.3151]
[1754256592562,3.7255,3503.9,3503.8,1.3151]
[1754256592960,3.7255,3503.9,3503.8,0.8248]
[1754256593158,23.3655,3503.9,3503.8,0.3016]
[1754256593361,23.3655,3503.9,3503.8,1.3151]
[1754256593663,23.3625,3503.9,3503.8,1.3151]
[1754256598974,23.3625,3503.9,3503.8,0.3016]
[1754256599471,23.3625,3503.9,3503.8,0.5051]
[1754256599673,23.3625,3503.9,3503.8,1.3151]
[1754256600179,23.3435,3503.9,3503.8,1.3151]
[1754256601269,22.8258,3503.9,3503.8,1.3151]
[1754256601476,22.8238,3503.9,3503.8,1.3151]
[1754256601775,3.2078,3504.4,3504.3,0.5232]
[1754256601972,22.8238,3504.4,3504.3,1.3151]
[1754256602172,23.1402,3504.4,3504.3,1.3151]
[1754256603174,23.3415,3504.4,3504.3,1.3151]
[1754256603371,23.6606,3504.4,3504.3,1.3151]
[1754256603576,4.5204,3504.4,3504.3,1.3151]
[1754256603976,24.1374,3504.4,3504.3,1.3151]
[1754256604483,24.1364,3504.4,3504.3,1.3151]
[1754256604684,4.5204,3504.4,3504.3,1.3151]
[1754256604880,3.2078,3504.4,3504.3,1.3151]
[1754256605084,3.2078,3504.8,3504.7,0.5232]
[1754256605282,22.8258,3504.8,3504.7,1.3151]
[1754256605581,23.3435,3504.8,3504.7,1.3151]
[1754256605782,23.1422,3504.8,3504.7,1.3151]
[1754256605985,20.1357,3504.8,3504.7,0.5051]
[1754256606187,5.0526,3504.8,3504.7,1.3151]
[1754256606386,24.3536,3504.8,3504.7,1.3151]
[1754256607885,1.30727,3504.6,3504.5,0.5232]
[1754256608186,1.5288,3504.6,3504.5,1.3151]
[1754256609287,3.7255,3504.8,3504.7,0.5232]
[1754256609581,3.7255,3504.8,3504.0,3.2078]
[1754256609582,2.09945,3504.7,3504.6,1.3151]
[1754256610184,1.5288,3504.7,3504.6,1.3151]
[1754256612785,1.8448,3504.7,3504.6,0.8248]
[1754256613184,1.8448,3504.7,3504.6,1.3151]
[1754256613585,1.5288,3504.7,3504.6,1.3151]
[1754256613787,1.5288,3504.7,3504.6,1.3434]
[1754256614088,1.5288,3504.7,3504.6,1.3611]
[1754256614583,19.612,3504.8,3504.3,0.0283]
[1754256614584,0.2074,3504.4,3504.3,0.0283]
[1754256614783,0.2074,3504.4,3504.3,1.0322]
[1754256615289,0.5192,3504.4,3504.3,1.3561]
[1754256615588,0.5192,3504.4,3504.3,0.8671]
[1754256615589,1.0564,3504.4,3504.3,0.8671]
[1754256615785,1.5387,3504.4,3504.3,1.3101]
[1754256618982,1.5387,3504.4,3504.3,1.3278]
[1754256619689,1.8514,3504.4,3504.3,1.3101]
[1754256621177,1.8514,3504.4,3503.6,3.2078]
[1754256621178,0.2074,3503.8,3503.7,0.89471]
[1754256621377,1.5387,3503.8,3503.7,1.3561]
[1754256621578,1.5387,3503.8,3503.7,1.3384]
[1754256621786,1.8514,3503.8,3503.7,1.3101]
[1754256623286,3.5196,3504.4,3504.3,1.3561]
[1754256623491,23.1166,3504.4,3504.3,1.3561]
[1754256623690,23.324,3504.4,3504.3,1.3561]
[1754256624188,20.5985,3504.4,3504.3,1.3561]
[1754256624390,20.8188,3504.4,3504.3,1.3561]
[1754256625588,20.1162,3504.4,3504.3,1.3561]
[1754256626594,20.5985,3504.4,3504.3,1.3561]
[1754256627093,21.1347,3504.4,3504.3,1.3101]
[1754256627295,21.4474,3504.4,3504.3,1.3101]
[1754256627893,21.4474,3504.4,3504.3,0.8671]
[1754256628193,21.4474,3504.4,3504.0,1.3101]
[1754256628194,1.8514,3504.1,3504.0,1.3101]
[1754256628496,1.8514,3503.8,3503.7,0.3239]
[1754256628693,21.4474,3503.8,3503.7,1.3101]
[1754256629695,20.68601,3503.8,3503.2,3.2078]
[1754256629999,1.5387,3503.3,3503.2,4.5179]
[1754256630695,0.3118,3503.2,3502.7,3.2078]
[1754256631001,1.5387,3503.2,3503.1,1.3101]
[1754256631898,21.4494,3503.2,3503.1,1.3101]
[1754256632195,21.4494,3503.2,3503.1,0.8671]
[1754256632492,21.4494,3503.2,3503.1,0.3239]
[1754256633392,0.57091,3503.1,3502.9,0.443]
[1754256633597,3.9329178,3503.0,3502.9,0.3239]
[1754256633795,5.0397178,3503.0,3502.9,0.5449]
[1754256633995,5.0397178,3503.0,3502.9,1.3101]
[1754256635395,0.5192,3502.6,3502.5,1.3101]
[1754256635603,20.1172,3502.6,3502.5,1.339]
[1754256636291,20.8198,3502.6,3502.5,1.339]
[1754256636492,21.1367,3502.6,3502.5,1.339]
[1754256643206,0.57091,3503.2,3502.8,1.13195]
[1754256643503,1.2218,3502.9,3502.8,0.5721]
[1754256643804,21.1407,3502.9,3502.8,0.5721]
[1754256644008,21.1407,3502.9,3502.8,1.3576]
[1754256644504,1.5387,3502.9,3502.8,1.3576]
[1754256644698,21.1407,3502.9,3502.8,1.3576]
[1754256645706,21.1407,3502.9,3502.8,1.3465]
[1754256647405,1.5387,3502.9,3502.8,1.3465]
[1754256647606,21.1407,3502.9,3502.8,1.3465]
[1754256649004,21.1407,3502.9,3502.8,1.3287]
[1754256649305,1.8456,3502.9,3502.8,1.3287]
[1754256649606,21.4476,3502.9,3502.8,1.3287]
[1754256651103,1.5188,3502.4,3502.3,1.3117]
[1754256651303,21.1208,3502.4,3502.3,1.3117]
[1754256651603,21.1208,3502.4,3502.3,1.3175]
[1754256652609,0.57104,3502.3,3501.9,1.02799869]
[1754256652913,2.39678,3502.1,3502.0,1.0081]
[1754256653106,21.4277,3502.1,3502.0,1.0081]
[1754256653304,21.4277,3502.1,3502.0,1.3117]
[1754256653510,21.1208,3502.1,3502.0,1.3117]
[1754256653809,21.1208,3502.1,3502.0,1.3267]
[1754256654004,21.1208,3502.1,3502.0,1.3209]
[1754256654205,21.1208,3502.1,3502.0,1.3117]
[1754256654206,21.4277,3502.1,3502.0,1.3117]
[1754256662415,3.2078,3502.2,3502.0,1.40089]
[1754256662614,3.7114,3502.6,3502.5,1.3267]
[1754256662920,23.35875068,3502.6,3502.5,1.3267]
[1754256663120,27.51257848,3502.6,3502.2,0.3036]
[1754256663424,1.5188,3502.3,3502.2,1.3175]
[1754256663608,21.1228,3502.3,3502.2,1.3267]
[1754256663809,20.6511,3502.3,3502.2,1.3267]
[1754256665520,20.1475,3502.3,3502.2,1.3267]
[1754256667125,0.5435,3502.3,3502.2,1.3267]
[1754256667321,20.1475,3502.3,3502.2,1.3267]
[1754256668321,0.5435,3502.8,3502.7,1.10637]
[1754256668524,20.36813987,3502.8,3502.7,0.5412]
[1754256669027,21.34343987,3502.8,3502.7,1.3267]
[1754256670124,21.34343409,3502.8,3502.7,1.3267]
[1754256670520,0.22063409,3502.8,3502.7,1.3267]
[1754256670722,1.52268648,3503.7,3502.4,3.1883178]
[1754256670723,3.7513,3503.4,3503.3,0.8448]
[1754256671024,25.35387809,3503.4,3503.3,1.3267]
[1754256671728,20.62727809,3503.4,3503.3,1.3267]
[1754256672224,20.73297266,3503.4,3503.3,1.3267]
[1754256672418,19.9293,3503.4,3503.3,1.3267]
[1754256672821,44.6491,3504.0,3503.9,0.5262]
[1754256673022,62.53806142,3504.0,3503.9,1.3267]
[1754256674823,63.42103142,3504.0,3503.6,0.57083]
[1754256675034,1.4836,3503.6,3503.5,1.90404]
[1754256675230,21.0846,3503.6,3503.5,1.90404]
[1754256675530,21.0846,3503.6,3503.5,1.3309]
[1754256675726,1.7958,3503.5,3503.4,0.5274]
[1754256676029,22.7893178,3503.6,3503.1,0.8075]
[1754256676030,0.7669,3503.4,3503.1,0.8075]
[1754256676229,1.7958,3503.2,3503.1,1.3309]
[1754256677325,1.4836,3503.2,3503.1,1.005]
[1754256677526,1.4836,3503.2,3503.1,1.3309]
[1754256680232,1.7958,3503.2,3503.1,1.3309]
[1754256680925,1.7958,3503.2,3503.1,0.3259]
[1754256681130,1.7958,3503.2,3502.6,3.2087]
[1754256681131,0.7167,3502.9,3502.7,0.57097]
[1754256681332,3.2078,3503.5,3502.6,3.2078]
[1754256681333,21.3938,3502.8,3502.6,0.57099]
[1754256681535,0.7167,3502.8,3502.7,1.3309]
[1754256681730,20.3137,3502.8,3502.7,1.3309]
[1754256681935,21.0806,3502.8,3502.7,1.3309]
[1754256682931,21.3928,3502.8,3502.7,0.5274]
[1754256683228,0.7167,3502.6,3502.5,0.3259]
[1754256683429,21.3928,3502.6,3502.5,0.5274]
[1754256683731,21.3928,3502.6,3502.5,1.3309]
[1754256685334,21.3928,3502.6,3502.5,0.3259]
[1754256685631,21.9638,3502.6,3502.2,1.05264]
[1754256685836,1.3409,3502.4,3502.3,0.2015]
[1754256686125,21.3928,3502.4,3502.3,1.005]
[1754256686331,21.3928,3502.4,3502.3,1.3309]
[1754256687530,1.7958,3502.2,3502.1,0.3259]
[1754256687732,20.3137,3502.2,3501.9,1.59909869]
[1754256688037,1.4836,3502.0,3501.9,2.03299869]
[1754256688230,21.0806,3502.0,3501.9,2.03299869]
[1754256688426,21.0806,3502.0,3501.9,2.35889869]
[1754256689937,21.3928,3502.0,3501.9,2.35889869]
[1754256693936,21.3928,3502.0,3501.9,1.87729869]
[1754256694144,21.3928,3502.0,3501.9,1.02799869]
[1754256694336,24.6006,3502.0,3501.9,1.02799869]
[1754256694730,24.6006,3502.0,3501.9,1.35389869]
[1754256694935,24.6006,3502.0,3501.9,2.35889869]
[1754256699441,24.6006,3502.0,3501.9,1.87729869]
[1754256700238,24.6006,3502.0,3501.9,2.35889869]
[1754256700541,24.6006,3502.0,3501.9,1.02799869]
[1754256700838,24.6006,3502.0,3501.9,1.55539869]
[1754256701040,24.6006,3502.0,3501.9,2.35889869]
[1754256702337,24.6006,3502.0,3501.9,1.87729869]
[1754256702941,24.6006,3502.0,3501.9,2.35889869]
[1754256704537,24.5828,3502.0,3501.9,1.02799869]
[1754256705540,24.5828,3502.0,3501.9,1.33589869]
[1754256713241,24.5828,3502.0,3501.9,1.02799869]
[1754256714046,24.80636613,3502.0,3501.9,1.02799869]
[1754256714342,25.60947618,3502.0,3501.9,0.70099869]
[1754256714544,1.332,3501.4,3501.3,0.3079]
[1754256714744,24.4980178,3501.4,3501.3,0.3079]
[1754256715545,0.5345,3501.0,3500.9,0.51]
[1754256715746,0.5345,3501.0,3500.9,1.8107]
[1754256715747,20.7109,3501.0,3500.9,1.8107]
[1754256715952,20.7109,3501.0,3500.5,3.2078]
[1754256715953,22.7883178,3501.0,3500.5,3.2078]
[1754256716246,0.5345,3500.7,3500.6,1.5144]
[1754256716544,20.7109,3500.7,3500.6,1.5144]
[1754256716852,21.0153,3500.7,3500.6,1.8107]
[1754256717446,1.28722,3500.6,3500.5,0.5282]
[1754256717644,1.58162,3500.6,3500.5,1.3123]
[1754256717949,1.58167,3500.3,3500.2,0.8361]
[1754256718150,21.58767,3500.3,3500.2,1.5144]
[1754256718351,21.58767,3500.3,3500.2,1.8107]
[1754256718551,24.79547,3500.3,3500.2,0.8361]
[1754256718748,24.5185,3500.3,3500.2,1.3123]
[1754256719044,24.5185,3500.3,3500.2,1.8107]
[1754256720452,24.5185,3500.3,3500.2,1.5144]
[1754256720650,22.8088,3500.3,3499.4,3.5041]
[1754256720952,4.8980178,3500.1,3500.0,1.6086]
[1754256721152,24.5010178,3500.1,3500.0,1.3123]
[1754256721549,24.5010178,3500.1,3500.0,1.6086]
[1754256721851,24.5010178,3500.1,3500.0,1.8107]
[1754256722552,24.5010178,3500.1,3500.0,1.3123]
[1754256722949,24.5010178,3500.1,3500.0,0.5107]
[1754256723151,0.7159,3499.7,3499.6,0.5282]
[1754256723352,20.0135,3499.7,3499.6,1.5028]
[1754256723555,1.58181,3499.4,3499.3,0.5282]
[1754256723754,21.18381,3499.4,3499.3,1.8107]
[1754256724055,25.09101,3499.4,3499.3,1.8107]